fUST/lending_fUST_20241227
["ID","MTS","AMOUNT","RATE_DAILY","PERIOD"]
[346767897,1735275005617,-500.0,9.409e-05,2]
[346767898,1735275005651,-158.51084187,9.409e-05,2]
[346767899,1735275005692,-468.26083624,9.409e-05,2]
[346767900,1735275005722,-483.2840284,9.409e-05,2]
[346767916,1735275031891,-16.7159716,9.409e-05,2]
[346767917,1735275031901,-500.0,9.409e-05,2]
[346767918,1735275031911,-500.0,9.409e-05,2]
[346767919,1735275031920,-226.08906013,9.409e-05,2]
[346767920,1735275031930,-500.0,9.409e-05,2]
[346767921,1735275031939,-500.0,9.409e-05,2]
[346767922,1735275031949,-500.0,9.409e-05,2]
[346767923,1735275031959,-529.84760102,9.409e-05,2]
[346767924,1735275031968,-972.25,9.409e-05,2]
[346767925,1735275031978,-500.0,9.409e-05,2]
[346767926,1735275031987,-500.0,9.409e-05,2]
[346767927,1735275031997,-500.0,9.409e-05,2]
[346767928,1735275032007,-500.0,9.409e-05,2]
[346767929,1735275032016,-420.2662736,9.409e-05,2]
[346767930,1735275032026,-589.35,9.409e-05,2]
[346767931,1735275032035,-500.0,9.409e-05,2]
[346767932,1735275032045,-500.0,9.409e-05,2]
[346767933,1735275032054,-500.0,9.409e-05,2]
[346767934,1735275032064,-500.0,9.409e-05,2]
[346767935,1735275032074,-500.0,9.409e-05,2]
[346767936,1735275032083,-500.0,9.409e-05,2]
[346767937,1735275032092,-7262.28973105,9.409e-05,2]
[346767964,1735275037744,-495.67026895,9.409e-05,2]
[346767966,1735275037753,-500.0,9.409e-05,2]
[346767968,1735275037764,-500.0,9.409e-05,2]
[346767970,1735275037774,-500.0,9.409e-05,2]
[346767972,1735275037783,-2957.85,9.409e-05,2]
[346767974,1735275037792,-204.17923322,9.409e-05,2]
[346767976,1735275037802,-500.0,9.409e-05,2]
[346767978,1735275037812,-500.0,9.409e-05,2]
[346767980,1735275037821,-500.0,9.409e-05,2]
[346767982,1735275037830,-503.3364652,9.409e-05,2]
[346767984,1735275037841,-504.95466408,9.409e-05,2]
[346767986,1735275037850,-502.57999623,9.409e-05,2]
[346767988,1735275037859,-502.86312223,9.409e-05,2]
[346767990,1735275037868,-461.67166326,9.409e-05,2]
[346767992,1735275037878,-500.0,9.409e-05,2]
[346767994,1735275037889,-500.0,9.409e-05,2]
[346767996,1735275037900,-500.0,9.409e-05,2]
[346767998,1735275037909,-500.0,9.409e-05,2]
[346768000,1735275037918,-506.24089583,9.409e-05,2]
[346768002,1735275037927,-502.3535609,9.409e-05,2]
[346768004,1735275037937,-500.0,9.409e-05,2]
[346768006,1735275037946,-500.0,9.409e-05,2]
[346768008,1735275037956,-500.0,9.409e-05,2]
[346768010,1735275037965,-502.32885268,9.409e-05,2]
[346768012,1735275037975,-500.0,9.409e-05,2]
[346768014,1735275037984,-500.0,9.409e-05,2]
[346768016,1735275037993,-500.0,9.409e-05,2]
[346768018,1735275038003,-500.0,9.409e-05,2]
[346768020,1735275038012,-440.66139914,9.409e-05,2]
[346768022,1735275038022,-2555.62,9.409e-05,2]
[346768024,1735275038031,-555.26,9.409e-05,2]
[346768026,1735275038040,-545.14377018,9.409e-05,2]
[346768028,1735275038050,-502.0730327,9.409e-05,2]
[346768030,1735275038059,-680.84,9.409e-05,2]
[346768031,1735275038069,-1476.96,9.409e-05,2]
[346768032,1735275038078,-222.66784673,9.409e-05,2]
[346768033,1735275038087,-500.0,9.409e-05,2]
[346768034,1735275038096,-500.0,9.409e-05,2]
[346768035,1735275038105,-931.74,9.409e-05,2]
[346768036,1735275038114,-500.0,9.409e-05,2]
[346768037,1735275038123,-1149.13,9.409e-05,2]
[346768038,1735275038132,-500.0,9.41e-05,2]
[346768039,1735275038142,-500.0,9.41e-05,2]
[346768040,1735275038151,-500.0,9.41e-05,2]
[346768041,1735275038160,-485.95,9.41e-05,2]
[346768042,1735275038169,-500.0,9.41e-05,2]
[346768043,1735275038178,-500.0,9.41e-05,2]
[346768044,1735275038187,-500.0,9.41e-05,2]
[346768045,1735275038196,-515.75,9.41e-05,2]
[346768046,1735275038205,-500.0,9.41e-05,2]
[346768047,1735275038215,-500.0,9.41e-05,2]
[346768048,1735275038224,-657.7,9.41e-05,2]
[346768049,1735275038233,-500.0,9.41e-05,2]
[346768050,1735275038242,-389.28,9.41e-05,2]
[346768051,1735275038251,-500.0,9.41e-05,2]
[346768052,1735275038261,-500.0,9.41e-05,2]
[346768053,1735275038271,-501.54274237,9.41e-05,2]
[346768055,1735275038279,-537.18,9.41e-05,2]
[346768057,1735275038289,-500.0,9.41e-05,2]
[346768059,1735275038298,-500.0,9.41e-05,2]
[346768061,1735275038307,-500.0,9.41e-05,2]
[346768062,1735275038316,-500.0,9.41e-05,2]
[346768064,1735275038325,-500.0,9.41e-05,2]
[346768066,1735275038334,-500.0,9.41e-05,2]
[346768068,1735275038343,-500.0,9.41e-05,2]
[346768070,1735275038353,-678.6,9.41e-05,2]
[346768071,1735275038363,-500.0,9.41e-05,2]
[346768072,1735275038372,-500.0,9.41e-05,2]
[346768073,1735275038381,-500.0,9.41e-05,2]
[346768074,1735275038390,-500.0,9.41e-05,2]
[346768075,1735275038399,-500.0,9.41e-05,2]
[346768076,1735275038409,-500.0,9.41e-05,2]
[346768077,1735275038418,-916.39,9.41e-05,2]
[346768078,1735275038427,-500.0,9.41e-05,2]
[346768079,1735275038436,-500.0,9.41e-05,2]
[346768080,1735275038445,-1596.11,9.41e-05,2]
[346768081,1735275038454,-500.0,9.41e-05,2]
[346768082,1735275038463,-625.76,9.41e-05,2]
[346768083,1735275038472,-500.0,9.41e-05,2]
[346768084,1735275038482,-500.0,9.41e-05,2]
[346768085,1735275038491,-500.0,9.41e-05,2]
[346768086,1735275038500,-500.0,9.41e-05,2]
[346768087,1735275038510,-500.0,9.41e-05,2]
[346768088,1735275038520,-500.0,9.41e-05,2]
[346768089,1735275038529,-500.0,9.41e-05,2]
[346768090,1735275038539,-502.18806448,9.41e-05,2]
[346768091,1735275038548,-500.0,9.41e-05,2]
[346768092,1735275038557,-500.0,9.41e-05,2]
[346768093,1735275038567,-500.0,9.41e-05,2]
[346768094,1735275038576,-500.0,9.41e-05,2]
[346768095,1735275038586,-500.0,9.41e-05,2]
[346768096,1735275038596,-502.41229806,9.41e-05,2]
[346768097,1735275038605,-713.31,9.41e-05,2]
[346768098,1735275038615,-537.28,9.41e-05,2]
[346768099,1735275038625,-516.72346495,9.41e-05,2]
[346768100,1735275038637,-799.07,9.41e-05,2]
[346768101,1735275038647,-500.0,9.41e-05,2]
[346768102,1735275038657,-823.16,9.41e-05,2]
[346768103,1735275038666,-513.8,9.41e-05,2]
[346768104,1735275038676,-500.0,9.41e-05,2]
[346768105,1735275038685,-500.0,9.41e-05,2]
[346768106,1735275038694,-854.31,9.41e-05,2]
[346768107,1735275038704,-500.0,9.41e-05,2]
[346768108,1735275038714,-500.0,9.41e-05,2]
[346768109,1735275038724,-8180.9394455,9.41e-05,2]
[346768110,1735275038737,-10102.2105545,9.41e-05,2]
[346768111,1735275038746,-500.0,9.41e-05,2]
[346768112,1735275038756,-500.0,9.41e-05,2]
[346768113,1735275038767,-500.0,9.41e-05,2]
[346768114,1735275038777,-500.0,9.41e-05,2]
[346768115,1735275038786,-500.0,9.41e-05,2]
[346768116,1735275038796,-800.26,9.41e-05,2]
[346768117,1735275038805,-1328.06,9.41e-05,2]
[346768118,1735275038814,-500.0,9.41e-05,2]
[346768119,1735275038824,-515.83,9.41e-05,2]
[346768120,1735275038833,-500.0,9.41e-05,2]
[346768121,1735275038842,-500.0,9.41e-05,2]
[346768122,1735275038852,-500.0,9.41e-05,2]
[346768123,1735275038861,-500.0,9.41e-05,2]
[346768124,1735275038871,-712.36,9.41e-05,2]
[346768125,1735275038880,-500.0,9.41e-05,2]
[346768126,1735275038889,-651.49,9.41e-05,2]
[346768127,1735275038899,-500.0,9.41e-05,2]
[346768128,1735275038909,-500.0,9.41e-05,2]
[346768129,1735275038919,-331.97471129,9.41e-05,2]
[346768130,1735275038929,-500.0,9.411e-05,2]
[346768131,1735275038938,-500.0,9.411e-05,2]
[346768132,1735275038947,-500.0,9.411e-05,2]
[346768133,1735275038957,-500.0,9.411e-05,2]
[346768134,1735275038966,-500.0,9.411e-05,2]
[346768135,1735275038975,-502.10794084,9.411e-05,2]
[346768136,1735275038985,-502.52140937,9.411e-05,2]
[346768137,1735275038994,-500.0,9.411e-05,2]
[346768138,1735275039004,-501.23192038,9.411e-05,2]
[346768139,1735275039015,-500.0,9.411e-05,2]
[346768140,1735275039024,-502.02754045,9.411e-05,2]
[346768141,1735275039033,-500.0,9.411e-05,2]
[346768142,1735275039043,-500.0,9.411e-05,2]
[346768143,1735275039052,-500.0,9.411e-05,2]
[346768144,1735275039142,-500.0,9.411e-05,2]
[346768145,1735275039152,-500.0,9.411e-05,2]
[346768146,1735275039162,-500.0,9.411e-05,2]
[346768147,1735275039171,-216.5703906,9.411e-05,2]
[346768148,1735275039180,-500.0,9.411e-05,2]
[346768149,1735275039189,-502.61595608,9.411e-05,2]
[346768150,1735275039198,-500.0,9.411e-05,2]
[346768151,1735275039207,-500.0,9.411e-05,2]
[346768152,1735275039217,-500.0,9.411e-05,2]
[346768153,1735275039226,-500.0,9.411e-05,2]
[346768154,1735275039235,-502.09598806,9.411e-05,2]
[346768155,1735275039245,-500.0,9.411e-05,2]
[346768156,1735275039254,-500.0,9.411e-05,2]
[346768157,1735275039266,-500.0,9.411e-05,2]
[346768158,1735275039275,-500.0,9.411e-05,2]
[346768159,1735275039284,-500.0,9.411e-05,2]
[346768160,1735275039294,-284.32071192,9.411e-05,2]
[346768161,1735275039303,-500.0,9.411e-05,2]
[346768162,1735275039312,-504.84265271,9.411e-05,2]
[346768163,1735275039321,-500.0,9.411e-05,2]
[346768164,1735275039331,-233.29200516,9.411e-05,2]
[346768165,1735275039350,-266.70799484,9.411e-05,2]
[346768166,1735275039360,-500.0,9.411e-05,2]
[346768167,1735275039369,-500.0,9.411e-05,2]
[346768168,1735275039379,-500.0,9.411e-05,2]
[346768169,1735275039389,-500.0,9.411e-05,2]
[346768170,1735275039399,-500.0,9.411e-05,2]
[346768171,1735275039408,-500.0,9.411e-05,2]
[346768172,1735275039417,-500.0,9.411e-05,2]
[346768173,1735275039427,-504.06281218,9.411e-05,2]
[346768174,1735275039437,-204.72,9.411e-05,2]
[346768175,1735275039446,-500.0,9.411e-05,2]
[346768176,1735275039456,-500.0,9.411e-05,2]
[346768177,1735275039466,-530.91515305,9.411e-05,2]
[346768178,1735275039475,-500.0,9.411e-05,2]
[346768179,1735275039485,-500.0,9.411e-05,2]
[346768180,1735275039495,-500.0,9.411e-05,2]
[346768181,1735275039504,-500.0,9.411e-05,2]
[346768183,1735275039516,-500.0,9.411e-05,2]
[346768185,1735275039525,-500.0,9.411e-05,2]
[346768187,1735275039535,-500.0,9.411e-05,2]
[346768189,1735275039545,-500.0,9.411e-05,2]
[346768190,1735275039554,-500.0,9.411e-05,2]
[346768191,1735275039563,-500.0,9.411e-05,2]
[346768192,1735275039573,-500.0,9.411e-05,2]
[346768193,1735275039582,-500.0,9.411e-05,2]
[346768194,1735275039592,-500.0,9.411e-05,2]
[346768195,1735275039602,-466.7169949,9.411e-05,2]
[346768215,1735275040092,-33.2830051,9.411e-05,2]
[346768217,1735275040102,-501.88889404,9.411e-05,2]
[346768219,1735275040112,-500.0,9.411e-05,2]
[346768221,1735275040121,-500.0,9.411e-05,2]
[346768222,1735275040132,-500.0,9.411e-05,2]
[346768223,1735275040142,-500.0,9.411e-05,2]
[346768224,1735275040151,-514.89,9.411e-05,2]
[346768226,1735275040161,-500.0,9.411e-05,2]
[346768228,1735275040170,-500.0,9.411e-05,2]
[346768230,1735275040179,-500.0,9.411e-05,2]
[346768232,1735275040190,-3501.59663661,9.411e-05,2]
[346768239,1735275042775,-500.0,9.408e-05,2]
[346768240,1735275042784,-721.13336339,9.411e-05,2]
[346768242,1735275042794,-500.0,9.411e-05,2]
[346768243,1735275042803,-500.0,9.411e-05,2]
[346768244,1735275042812,-500.0,9.411e-05,2]
[346768245,1735275042822,-500.0,9.411e-05,2]
[346768246,1735275042831,-500.0,9.411e-05,2]
[346768247,1735275042840,-182.64963597,9.411e-05,2]
[346768248,1735275042850,-500.0,9.411e-05,2]
[346768249,1735275042859,-500.0,9.411e-05,2]
[346768250,1735275042868,-500.0,9.411e-05,2]
[346768251,1735275042877,-500.0,9.411e-05,2]
[346768252,1735275042886,-500.0,9.411e-05,2]
[346768253,1735275042895,-281.76525962,9.411e-05,2]
[346768254,1735275042905,-500.0,9.411e-05,2]
[346768255,1735275042915,-500.0,9.411e-05,2]
[346768256,1735275042924,-500.0,9.411e-05,2]
[346768257,1735275042933,-500.0,9.411e-05,2]
[346768258,1735275042943,-500.0,9.411e-05,2]
[346768259,1735275042952,-500.0,9.411e-05,2]
[346768260,1735275042961,-502.4,9.411e-05,2]
[346768261,1735275042971,-500.0,9.411e-05,2]
[346768262,1735275042980,-500.0,9.411e-05,2]
[346768263,1735275042989,-500.0,9.411e-05,2]
[346768264,1735275042999,-500.0,9.411e-05,2]
[346768265,1735275043008,-500.0,9.411e-05,2]
[346768266,1735275043017,-500.0,9.411e-05,2]
[346768267,1735275043027,-1358.26,9.411e-05,2]
[346768268,1735275043036,-500.0,9.411e-05,2]
[346768269,1735275043046,-500.0,9.411e-05,2]
[346768270,1735275043055,-500.0,9.411e-05,2]
[346768271,1735275043065,-500.0,9.411e-05,2]
[346768272,1735275043074,-500.0,9.411e-05,2]
[346768273,1735275043085,-500.0,9.411e-05,2]
[346768274,1735275043094,-500.0,9.411e-05,2]
[346768275,1735275043104,-500.0,9.411e-05,2]
[346768276,1735275043115,-500.0,9.411e-05,2]
[346768277,1735275043125,-60.43968937,9.411e-05,2]
[346768291,1735275045820,-500.0,9.409e-05,2]
[346768292,1735275045830,-439.56031063,9.411e-05,2]
[346768293,1735275045839,-307.84941747,9.411e-05,2]
[346768294,1735275045851,-192.15058253,9.411e-05,2]
[346768295,1735275045860,-439.40941747,9.411e-05,2]
[346768658,1735275660970,24900.0,8.412e-05,2]
[346768659,1735275886180,500.0,0.00020509,120]
[346768661,1735276092396,207.586,0.00023,120]
[346768662,1735276128793,-300.0,9.405e-05,2]
[346768663,1735276128820,-300.0,9.405e-05,2]
[346768664,1735276128851,-68.29613107,9.406e-05,2]
[346768665,1735276128889,-431.70386893,9.406e-05,2]
[346768666,1735276128914,-1059.42787802,9.406e-05,2]
[346768667,1735276153663,-300.0,9.405e-05,2]
[346768668,1735276153690,-300.0,9.405e-05,2]
[346768669,1735276153717,-934.32030451,9.406e-05,2]
[346768670,1735276153876,-600.20181747,9.406e-05,2]
[346768671,1735276153903,-683.85,9.406e-05,2]
[346768672,1735276153933,-3.58759547,9.406e-05,2]
[346768673,1735276178728,-496.41240453,9.406e-05,2]
[346768674,1735276178755,-500.0,9.406e-05,2]
[346768675,1735276178781,-500.0,9.406e-05,2]
[346768676,1735276178808,-94.34709433,9.406e-05,2]
[346768677,1735276178838,-65.52563466,9.406e-05,2]
[346768678,1735276178863,-382.65075461,9.406e-05,2]
[346768679,1735276178888,-970.88,9.406e-05,2]
[346768680,1735276178913,-171.70310959,9.406e-05,2]
[346768681,1735276178943,-415.98689041,9.406e-05,2]
[346768682,1735276178972,-137.41117366,9.406e-05,2]
[346768683,1735276203874,-300.0,9.405e-05,2]
[346768684,1735276203901,-300.0,9.405e-05,2]
[346768685,1735276203928,-362.58882634,9.406e-05,2]
[346768686,1735276203958,-500.0,9.406e-05,2]
[346768687,1735276203988,-202.86901376,9.406e-05,2]
[346768688,1735276204024,-341.94098624,9.406e-05,2]
[346768689,1735276204070,-490.61915272,9.406e-05,2]
[346768690,1735276216399,2019.98,0.00023,120]
[346768732,1735276232012,-722.59937,9.406e-05,2]
[346768811,1735276237916,-6656.68147728,9.406e-05,2]
[346768813,1735276237926,-500.0,9.406e-05,2]
[346768815,1735276237935,-618.23774072,9.406e-05,2]
[346768831,1735276238080,-2383.67225928,9.406e-05,2]
[346768833,1735276238089,-500.0,9.406e-05,2]
[346768835,1735276238099,-500.0,9.406e-05,2]
[346768837,1735276238108,-2424.26556602,9.406e-05,2]
[346769049,1735276246038,-61.60443398,9.406e-05,2]
[346769050,1735276246048,-500.0,9.406e-05,2]
[346769051,1735276246058,-655.36,9.406e-05,2]
[346769052,1735276246067,-930.43,9.406e-05,2]
[346769053,1735276246077,-1521.27,9.406e-05,2]
[346769054,1735276246087,-1167.22,9.406e-05,2]
[346769055,1735276246097,-500.0,9.406e-05,2]
[346769056,1735276246108,-500.0,9.406e-05,2]
[346769057,1735276246117,-438.13746592,9.407e-05,2]
[346769058,1735276246127,-500.0,9.407e-05,2]
[346769059,1735276246137,-500.98052566,9.407e-05,2]
[346769060,1735276246146,-503.128924,9.407e-05,2]
[346769061,1735276246155,-500.0,9.407e-05,2]
[346769062,1735276246165,-500.95394899,9.407e-05,2]
[346769063,1735276246175,-502.39286339,9.407e-05,2]
[346769064,1735276246184,-500.0,9.407e-05,2]
[346769065,1735276246194,-502.18538924,9.407e-05,2]
[346769066,1735276246203,-500.0,9.407e-05,2]
[346769067,1735276246213,-501.60871758,9.407e-05,2]
[346769068,1735276246222,-500.0,9.407e-05,2]
[346769069,1735276246232,-502.0360665,9.407e-05,2]
[346769070,1735276246241,-500.0,9.407e-05,2]
[346769071,1735276246251,-500.0,9.407e-05,2]
[346769072,1735276246260,-231.05700933,9.407e-05,2]
[346769073,1735276246270,-500.0,9.407e-05,2]
[346769074,1735276246280,-503.55492081,9.407e-05,2]
[346769075,1735276246289,-500.0,9.407e-05,2]
[346769076,1735276246299,-500.0,9.407e-05,2]
[346769077,1735276246309,-406.93,9.407e-05,2]
[346769078,1735276246319,-500.0,9.407e-05,2]
[346769079,1735276246329,-500.0,9.407e-05,2]
[346769080,1735276246339,-500.0,9.407e-05,2]
[346769081,1735276246347,-500.0,9.407e-05,2]
[346769082,1735276246357,-542.63347836,9.407e-05,2]
[346769083,1735276246366,-500.0,9.407e-05,2]
[346769084,1735276246375,-500.0,9.407e-05,2]
[346769085,1735276246385,-500.0,9.407e-05,2]
[346769086,1735276246394,-500.0,9.407e-05,2]
[346769087,1735276246404,-630.3,9.407e-05,2]
[346769088,1735276246413,-500.0,9.407e-05,2]
[346769089,1735276246423,-500.0,9.407e-05,2]
[346769090,1735276246433,-500.0,9.407e-05,2]
[346769091,1735276246442,-601.6277443,9.407e-05,2]
[346769092,1735276246452,-500.0,9.407e-05,2]
[346769093,1735276246462,-500.0,9.407e-05,2]
[346769094,1735276246471,-500.0,9.407e-05,2]
[346769095,1735276246481,-505.29160064,9.407e-05,2]
[346769096,1735276246490,-514.8,9.407e-05,2]
[346769097,1735276246499,-500.0,9.407e-05,2]
[346769098,1735276246509,-500.0,9.407e-05,2]
[346769099,1735276246519,-500.0,9.407e-05,2]
[346769100,1735276246528,-500.0,9.407e-05,2]
[346769101,1735276246537,-500.0,9.407e-05,2]
[346769102,1735276246547,-500.0,9.407e-05,2]
[346769103,1735276246557,-503.36452834,9.407e-05,2]
[346769104,1735276246566,-500.0,9.407e-05,2]
[346769105,1735276246576,-218.31,9.407e-05,2]
[346769106,1735276246586,-500.0,9.407e-05,2]
[346769107,1735276246596,-500.0,9.407e-05,2]
[346769108,1735276246606,-500.0,9.407e-05,2]
[346769109,1735276246616,-500.0,9.407e-05,2]
[346769110,1735276246626,-500.0,9.407e-05,2]
[346769111,1735276246636,-500.0,9.407e-05,2]
[346769112,1735276246645,-500.0,9.407e-05,2]
[346769113,1735276246655,-500.0,9.407e-05,2]
[346769114,1735276246664,-500.0,9.407e-05,2]
[346769115,1735276246674,-650.32,9.407e-05,2]
[346769116,1735276246683,-500.0,9.407e-05,2]
[346769117,1735276246693,-500.0,9.407e-05,2]
[346769118,1735276246702,-558.99,9.407e-05,2]
[346769119,1735276246712,-500.0,9.407e-05,2]
[346769120,1735276246721,-500.0,9.407e-05,2]
[346769121,1735276246731,-500.0,9.407e-05,2]
[346769122,1735276246741,-500.0,9.407e-05,2]
[346769123,1735276246751,-878.21,9.407e-05,2]
[346769124,1735276246760,-1529.61,9.407e-05,2]
[346769125,1735276246770,-500.0,9.407e-05,2]
[346769126,1735276246781,-500.0,9.407e-05,2]
[346769127,1735276246884,-500.0,9.407e-05,2]
[346769128,1735276246897,-500.0,9.407e-05,2]
[346769129,1735276246907,-500.0,9.407e-05,2]
[346769130,1735276246916,-174.90491691,9.407e-05,2]
[346769131,1735276246925,-500.0,9.407e-05,2]
[346769132,1735276246935,-500.0,9.407e-05,2]
[346769133,1735276246944,-500.0,9.407e-05,2]
[346769134,1735276246954,-500.0,9.407e-05,2]
[346769135,1735276246964,-514.89,9.407e-05,2]
[346769136,1735276246974,-500.0,9.407e-05,2]
[346769137,1735276246986,-500.0,9.407e-05,2]
[346769138,1735276246996,-500.0,9.407e-05,2]
[346769139,1735276247005,-683.58,9.407e-05,2]
[346769140,1735276247015,-431.38278261,9.407e-05,2]
[346769141,1735276247028,-68.61721739,9.407e-05,2]
[346769142,1735276247038,-500.0,9.407e-05,2]
[346769143,1735276247048,-500.0,9.407e-05,2]
[346769144,1735276247057,-18.18278276,9.407e-05,2]
[346769145,1735276247075,-747.59721724,9.407e-05,2]
[346769146,1735276247084,-788.86,9.407e-05,2]
[346769147,1735276247095,-500.0,9.407e-05,2]
[346769148,1735276247105,-501.98191268,9.407e-05,2]
[346769149,1735276247115,-500.0,9.407e-05,2]
[346769150,1735276247124,-500.0,9.407e-05,2]
[346769151,1735276247134,-818.72,9.407e-05,2]
[346769152,1735276247144,-500.0,9.407e-05,2]
[346769153,1735276247153,-500.0,9.407e-05,2]
[346769154,1735276247163,-500.0,9.407e-05,2]
[346769155,1735276247174,-500.0,9.407e-05,2]
[346769156,1735276247183,-500.0,9.407e-05,2]
[346769157,1735276247193,-500.0,9.407e-05,2]
[346769158,1735276247204,-505.70325562,9.407e-05,2]
[346769159,1735276247214,-502.78210461,9.407e-05,2]
[346769160,1735276247224,-122.2803758,9.407e-05,2]
[346769161,1735276628009,24900.0,8.402e-05,2]
[346769162,1735276635520,169.0,8.925e-05,2]
[346769163,1735276650591,169.0,8.925e-05,2]
[346769164,1735276847351,150.0,0.00023,120]
[346770031,1735276920936,150.0,0.00014,30]
[346770944,1735276947093,220.05,8.98e-05,2]
[346773689,1735277123451,169.0,7.946e-05,2]
[346773776,1735277145410,341.0,0.00023,120]
[346774123,1735277254314,10000.0,8.98e-05,2]
[346774181,1735277270479,6000.0,0.00013,10]
[346774208,1735277281376,10000.0,8.98e-05,2]
[346774230,1735277290417,10000.0,8.98e-05,2]
[346774345,1735277323602,-300.0,9e-05,3]
[346774346,1735277323629,-286.5609286,9.321e-05,2]
[346774347,1735277323655,-500.1693966,9.383e-05,2]
[346774349,1735277323680,-300.0,9.399e-05,2]
[346774350,1735277323706,-102.4721268,9.399e-05,2]
[346774352,1735277323740,-197.5278732,9.399e-05,2]
[346774353,1735277323766,-300.0,9.4e-05,3]
[346774354,1735277323792,-300.0,9.4e-05,3]
[346774355,1735277323818,-139.41200112,9.4e-05,4]
[346774432,1735277348458,-300.0,9.399e-05,2]
[346774433,1735277348486,-300.0,9.399e-05,2]
[346774434,1735277348514,-160.58799888,9.4e-05,4]
[346774435,1735277348543,-300.0,9.4e-05,4]
[346774436,1735277348568,-300.0,9.4e-05,3]
[346774437,1735277348592,-177.13729964,9.4e-05,3]
[346774438,1735277348623,-122.86270036,9.4e-05,3]
[346774439,1735277348648,-300.0,9.4e-05,3]
[346774440,1735277348674,-300.0,9.4e-05,4]
[346774441,1735277348699,-281.28963548,9.4e-05,4]
[346774510,1735277373520,-18.71036452,9.4e-05,4]
[346774511,1735277373548,-188.04390607,9.4e-05,3]
[346774512,1735277373573,-153.4628105,9.4e-05,2]
[346774513,1735277373598,-352.3665978,9.4e-05,2]
[346774515,1735277373624,-352.3665978,9.4e-05,2]
[346774516,1735277373649,-352.3665978,9.4e-05,2]
[346774517,1735277373674,-171.24597672,9.4e-05,2]
[346774518,1735277373707,-181.12062108,9.4e-05,2]
[346774519,1735277373731,-441.5012387,9.4e-05,2]
[346774520,1735277373756,-88.81528901,9.4e-05,2]
[346774570,1735277398516,-100.27073269,9.4e-05,2]
[346774571,1735277398549,-352.3665978,9.4e-05,2]
[346774572,1735277398580,-306.0,9.4e-05,2]
[346774573,1735277398607,-214.2645371,9.4e-05,2]
[346774574,1735277398634,-259.75133754,9.4e-05,2]
[346774575,1735277398664,-47.00547346,9.4e-05,2]
[346774576,1735277398689,-355.5537918,9.4e-05,2]
[346774577,1735277398714,-352.3236556,9.4e-05,2]
[346774578,1735277398739,-214.2645371,9.4e-05,2]
[346774579,1735277398763,-458.8321121,9.4e-05,2]
[346774580,1735277398788,-206.58328115,9.4e-05,2]
[346774709,1735277432222,-300.0,9.399e-05,2]
[346774711,1735277432232,-100.71669895,9.4e-05,2]
[346774712,1735277432242,-352.3236556,9.4e-05,2]
[346774714,1735277432251,-214.2645371,9.4e-05,2]
[346774716,1735277432262,-214.2645371,9.4e-05,2]
[346774718,1735277432271,-352.3236556,9.4e-05,2]
[346774720,1735277432281,-300.0,9.402e-05,2]
[346774722,1735277432291,-500.0,9.402e-05,2]
[346774724,1735277432300,-153.62786162,9.403e-05,2]
[346774726,1735277432310,-946.41,9.403e-05,2]
[346774728,1735277432319,-585.15,9.403e-05,2]
[346774730,1735277432328,-500.0,9.403e-05,2]
[346774732,1735277432337,-86.16655861,9.403e-05,2]
[346774925,1735277438179,-500.0,9.402e-05,2]
[346774926,1735277438189,-413.83344139,9.403e-05,2]
[346774927,1735277438199,-7987.22,9.403e-05,2]
[346774928,1735277438209,-500.0,9.403e-05,2]
[346774929,1735277438218,-584.87,9.403e-05,2]
[346774930,1735277438229,-500.0,9.403e-05,2]
[346774931,1735277438239,-3146.63,9.403e-05,2]
[346774932,1735277438248,-500.0,9.403e-05,2]
[346774933,1735277438258,-500.0,9.403e-05,2]
[346774934,1735277438267,-500.0,9.403e-05,2]
[346774935,1735277438277,-1559.32,9.403e-05,2]
[346774936,1735277438287,-2524.93,9.403e-05,2]
[346774937,1735277438296,-649.41,9.403e-05,2]
[346774938,1735277438306,-1181.8,9.403e-05,2]
[346774939,1735277438315,-500.0,9.404e-05,2]
[346774940,1735277438324,-500.0,9.404e-05,2]